fUSD/lending_fUSD_20240127
["ID","MTS","AMOUNT","RATE_DAILY","PERIOD"]
[312833830,1706321448093,-744.43267165,0.00033964,2]
[312833831,1706321448103,-507.16322137,0.00034,4]
[312833832,1706321448113,-1000.0,0.00034,4]
[312833833,1706321448122,-254.01826694,0.00034179,10]
[312833834,1706321448131,-794.94095186,0.00034179,10]
[312833835,1706321448141,-184.28845645,0.00034179,10]
[312833836,1706321448150,-1632.78852401,0.00034179,10]
[312833837,1706321448159,-1685.0,0.000344,10]
[312833838,1706321448169,-3084.22737246,0.00034465,7]
[312833839,1706321448179,-150.0,0.00034548,10]
[312833840,1706321448188,-509.24752379,0.000349,2]
[312833841,1706321448198,-509.24752369,0.000349,2]
[312833842,1706321448207,-509.24752369,0.000349,2]
[312833843,1706321448216,-509.24752369,0.000349,2]
[312833844,1706321448226,-509.24752369,0.000349,2]
[312833845,1706321448235,-509.24752369,0.000349,2]
[312833846,1706321448245,-155.0,0.00035,2]
[312833847,1706321448255,-1504.76904445,0.00035,2]
[312833848,1706321448265,-800.0,0.00035,3]
[312833849,1706321448275,-475.4939246,0.00035,2]
[312833850,1706321448284,-195.35946145,0.00035,2]
[312833851,1706321448294,-200.0,0.00035,2]
[312833852,1706321448303,-41135.63866467,0.00035,2]
[312833853,1706321448312,-164.0,0.00035,2]
[312833854,1706321448321,-8417.48878466,0.0003509,2]
[312833855,1706321448330,-10949.87467116,0.00035212,7]
[312833856,1706321448340,-1000.0,0.00035333,7]
[312833857,1706321448349,-381.5424304,0.00035333,7]
[312833858,1706321448358,-754.2233144,0.00035333,7]
[312833859,1706321448367,-763.01915856,0.00035333,7]
[312833860,1706321448376,-980.05889356,0.00035428,7]
[312833861,1706321448385,-200.92,0.00035504,2]
[312833862,1706321448394,-660.64881663,0.00035579,7]
[312833863,1706321448403,-5788.71,0.00035616,2]
[312833864,1706321448412,-153.84,0.00035616,2]
[312833865,1706321448422,-511.8950563,0.00035682,7]
[312833866,1706321448432,-227.68,0.000357,7]
[312833867,1706321448443,-160.46,0.000357,7]
[312833868,1706321448452,-296.26,0.000358,7]
[312833869,1706321448462,-319.96535717,0.00035841,7]
[312833870,1706321448476,-379.34548942,0.00035896,7]
[312833871,1706321448490,-285.37416855,0.00035952,7]
[312833872,1706321448503,-806.87556574,0.00035952,7]
[312833873,1706321448512,-453.44721437,0.00035952,7]
[312833874,1706321448521,-1000.0,0.00035952,10]
[312833875,1706321448530,-363.09410522,0.00035952,7]
[312833876,1706321448540,-846.72259077,0.00035952,7]
[312833877,1706321448549,-196.84750915,0.00035952,7]
[312833878,1706321448558,-155.72688395,0.00036,120]
[312833879,1706321448567,-218.0,0.00036,2]
[312833880,1706321448575,-316.09,0.00036613,15]
[312833881,1706321448584,-509.24752369,0.00037139,2]
[312833882,1706321448593,-153.84,0.00037443,2]
[312833883,1706321448602,-10401.53,0.000377,3]
[312833884,1706321448611,-200.92,0.00037768,2]
[312833885,1706321448621,-1163.17517222,0.000378,2]
[312833886,1706321448630,-1902.17554255,0.000378,2]
[312833887,1706321448639,-14400.17062602,0.000378,2]
[312833888,1706321448649,-10949.87467116,0.00037827,11]
[312833889,1706321448658,-1522.67,0.00037873,2]
[312833890,1706321448667,-73312.83638928,0.00037877,2]
[312833891,1706321448676,-1496218.14290858,0.0003788,2]
[312833892,1706321448686,-443.673776,0.0003788,7]
[312833893,1706321448697,-443.673776,0.0003788,7]
[312833894,1706321448709,-151.0,0.0003788,2]
[312833895,1706321448718,-151.0,0.0003788,7]
[312833896,1706321448730,-220.897599,0.0003788,7]
[312833897,1706321448743,-220.897599,0.0003788,7]
[312833898,1706321448764,-41135.63866467,0.0003788,2]
[312833899,1706321448788,-443.673776,0.000379,7]
[312833900,1706321448810,-443.673778,0.000379,7]
[312833901,1706321448820,-672065.136383,0.000379,3]
[312833902,1706321448829,-151.0,0.000379,2]
[312833903,1706321448839,-154.641361,0.000379,7]
[312833904,1706321448848,-220.897599,0.000379,7]
[312833905,1706321448857,-220.897592,0.000379,7]
[312833906,1706321448868,-151.67,0.00038356,2]
[312833907,1706321448879,-1000.0,0.000384,2]
[312833908,1706321448889,-3084.22737246,0.00038574,9]
[312833909,1706321448898,-282.21761447,0.0003898,2]
[312833910,1706321448908,-1429.82219222,0.00039,2]
[312833911,1706321449020,-150.02,0.0003926,2]
[312833912,1706321449030,-153.84,0.00039269,2]
[312833913,1706321449039,-150.0,0.000393,7]
[312833914,1706321449049,-150.0,0.00039377,120]
[312833915,1706321449059,-509.24752369,0.00039639,2]
[312833916,1706321449068,-225.76931188,0.00039998,4]
[312833917,1706321449077,-800.00736387,0.0004,60]
[312833918,1706321449087,-2500.0,0.0004,21]
[312833919,1706321449095,-312.35183304,0.0004,30]
[312833920,1706321449105,-637.40912439,0.0004,2]
[312833921,1706321449114,-191.41261259,0.0004,30]
[312833922,1706321449123,-200.92,0.00040032,2]
[312833923,1706321449132,-243.56,0.000401,4]
[312833924,1706321449141,-243.56,0.000401,4]
[312833925,1706321449150,-243.56,0.000401,4]
[312833926,1706321449159,-243.56,0.000401,4]
[312833927,1706321449168,-243.56,0.000401,4]
[312833928,1706321449178,-243.56,0.000401,4]
[312833929,1706321449187,-243.56,0.000401,4]
[312833930,1706321449196,-243.56,0.000401,4]
[312833931,1706321449206,-243.56,0.000401,4]
[312833932,1706321449215,-243.56,0.000401,4]
[312833933,1706321449224,-243.56,0.000401,4]
[312833934,1706321449233,-243.56,0.000401,4]
[312833935,1706321449243,-243.56,0.000401,4]
[312833936,1706321449252,-243.56,0.000401,4]
[312833937,1706321449261,-243.56,0.000401,4]
[312833938,1706321449270,-243.56,0.000401,4]
[312833939,1706321449279,-243.56,0.000401,4]
[312833940,1706321449288,-243.56,0.000401,4]
[312833941,1706321449297,-243.56,0.000401,4]
[312833942,1706321449306,-243.56,0.000401,4]
[312833943,1706321449315,-943.19,0.00040137,2]
[312833944,1706321449324,-402.52,0.00040137,2]
[312833945,1706321449333,-402.52,0.00040137,2]
[312833946,1706321449342,-943.19,0.00040137,2]
[312833947,1706321449350,-413.51,0.00040137,2]
[312833948,1706321449359,-966.74,0.00040137,2]
[312833949,1706321449368,-402.52,0.00040137,2]
[312833950,1706321449377,-943.19,0.00040137,2]
[312833951,1706321449386,-943.19,0.00040137,2]
[312833952,1706321449395,-804.83,0.00040137,2]
[312833953,1706321449404,-402.52,0.00040137,2]
[312833954,1706321449412,-943.19,0.00040137,2]
[312833955,1706321449421,-402.52,0.00040137,2]
[312833956,1706321449430,-402.52,0.00040137,2]
[312833957,1706321449439,-943.19,0.00040137,2]
[312833958,1706321449448,-402.52,0.00040137,2]
[312833959,1706321449457,-943.19,0.00040137,2]
[312833960,1706321449466,-609.59,0.00040137,2]
[312833961,1706321449475,-402.52,0.00040137,2]
[312833962,1706321449484,-402.52,0.00040137,2]
[312833963,1706321449493,-402.52,0.00040137,2]
[312833964,1706321449502,-402.52,0.00040137,2]
[312833965,1706321449511,-152.0,0.00040187,3]
[312833966,1706321449520,-316.09,0.00040349,15]
[312833967,1706321449530,-510.95952665,0.00040389,12]
[312833968,1706321449539,-10949.87467116,0.00040441,14]
[312833969,1706321449548,-296.26,0.000406,7]
[312833970,1706321449557,-300.0,0.00041,31]
[312833971,1706321449566,-151.17,0.00041,2]
[312833972,1706321449574,-151.17,0.00041,2]
[312833973,1706321449584,-151.17,0.00041,2]
[312833974,1706321449593,-151.17,0.00041,2]
[312833975,1706321449601,-151.17,0.00041,2]
[312833976,1706321449610,-151.17,0.00041,2]
[312833977,1706321449618,-151.17,0.00041,2]
[312833978,1706321449627,-151.17,0.00041,2]
[312833979,1706321449636,-151.17,0.00041,2]
[312833980,1706321449645,-151.17,0.00041,2]
[312833981,1706321449654,-151.17,0.00041,2]
[312833982,1706321449663,-151.17,0.00041,2]
[312833983,1706321449672,-151.17,0.00041,2]
[312833984,1706321449681,-151.17,0.00041,2]
[312833985,1706321449690,-151.17,0.00041,2]
[312833986,1706321449698,-151.17,0.00041,2]
[312833987,1706321449708,-151.17,0.00041,2]
[312833988,1706321449717,-151.17,0.00041,2]
[312833989,1706321449726,-151.17,0.00041,2]
[312833990,1706321449739,-151.17,0.00041,2]
[312833991,1706321449748,-151.17,0.00041,2]
[312833992,1706321449757,-151.17,0.00041,2]
[312833993,1706321449766,-151.17,0.00041,2]
[312833994,1706321449775,-151.17,0.00041,2]
[312833995,1706321449783,-151.17,0.00041,2]
[312833996,1706321449792,-151.17,0.00041,2]
[312833997,1706321449801,-151.17,0.00041,2]
[312833998,1706321449811,-151.17,0.00041,2]
[312833999,1706321449820,-151.17,0.00041,2]
[312834000,1706321449830,-151.17,0.00041,2]
[312834001,1706321449840,-151.17,0.00041,2]
[312834002,1706321449849,-151.17,0.00041,2]
[312834003,1706321449859,-151.17,0.00041,2]
[312834004,1706321449868,-151.17,0.00041,2]
[312834005,1706321449877,-151.17,0.00041,2]
[312834006,1706321449887,-151.17,0.00041,2]
[312834007,1706321449896,-151.17,0.00041,2]
[312834008,1706321449905,-402.52,0.00041096,2]
[312834009,1706321449915,-402.52,0.00041096,2]
[312834010,1706321449924,-402.52,0.00041096,2]
[312834011,1706321449933,-402.52,0.00041096,2]
[312834012,1706321449942,-402.52,0.00041096,2]
[312834013,1706321449951,-402.52,0.00041096,2]
[312834014,1706321449960,-165.656803,0.00041096,14]
[312834015,1706321449969,-153.84,0.00041096,2]
[312834016,1706321449978,-1000.0,0.000411,2]
[312834017,1706321449988,-150.0,0.00041257,120]
[312834018,1706321449997,-150.0,0.00041377,30]
[312834019,1706321450006,-50000.0,0.00041389,63]
[312834020,1706321450016,-154.999999,0.00041389,2]
[312834021,1706321450025,-2940.78281021,0.00041389,30]
[312834022,1706321450034,-300.0,0.00041389,50]
[312834023,1706321450045,-322.4,0.00041389,30]
[312834024,1706321450055,-1686.1346,0.00041389,7]
[312834025,1706321450064,-218.9663,0.00041389,120]
[312834026,1706321450073,-6487.98458682,0.00041389,32]
[312834027,1706321450082,-190.22095792,0.00041389,30]
[312834028,1706321450091,-173.11299604,0.00041389,30]
[312834029,1706321450101,-201.47997381,0.00041389,30]
[312834030,1706321450110,-162.68661246,0.00041389,120]
[312834031,1706321450119,-420.34854598,0.00041389,30]
[312834032,1706321450129,-230.27184634,0.00041389,120]
[312834033,1706321450139,-416.61376374,0.00041389,120]
[312834034,1706321450148,-412.36306579,0.00041389,30]
[312834035,1706321450157,-372.42104875,0.00041389,120]
[312834036,1706321450167,-185.41284158,0.00041389,30]
[312834037,1706321450176,-171.8540469,0.00041389,21]
[312834038,1706321450185,-160.62487629,0.00041389,30]
[312834039,1706321450195,-729.55084033,0.00041389,30]
[312834040,1706321450203,-1438.26656961,0.00041389,120]
[312834041,1706321450213,-150.0,0.00041389,30]
[312834042,1706321450222,-343.87008342,0.00041389,30]
[312834043,1706321450231,-150.0,0.00041553,120]
[312834044,1706321450240,-150.0,0.00041672,120]
[312834045,1706321450249,-17500.0,0.000418,37]
[312834046,1706321450259,-529.66243,0.00042,32]
[312834047,1706321450267,-1904.02583779,0.00042,30]
[312834048,1706321450277,-2325.76115459,0.00042,30]
[312834049,1706321450285,-218.0,0.00042,16]
[312834050,1706321450294,-666.0,0.000421,4]
[312834051,1706321450303,-509.24752369,0.00042139,5]
[312834052,1706321450312,-426.92,0.00042192,2]
[312834053,1706321450321,-202.01,0.00042192,2]
[312834054,1706321450330,-150.0,0.00042192,2]
[312834055,1706321450339,-409.34,0.00042192,2]
[312834056,1706321450348,-153.69,0.00042192,2]
[312834057,1706321450356,-294.89,0.00042192,2]
[312834058,1706321450365,-150.0,0.00042192,2]
[312834059,1706321450374,-150.0,0.00042192,2]
[312834060,1706321450383,-409.34,0.00042192,2]
[312834061,1706321450392,-150.0,0.00042192,2]
[312834062,1706321450401,-419.27,0.00042192,2]
[312834063,1706321450409,-150.0,0.00042192,2]
[312834064,1706321450418,-294.89,0.00042192,2]
[312834065,1706321450428,-150.0,0.00042192,2]
[312834066,1706321450436,-409.34,0.00042192,2]
[312834067,1706321450445,-150.0,0.00042192,2]
[312834068,1706321450454,-419.27,0.00042192,2]
[312834069,1706321450464,-150.0,0.00042192,2]
[312834070,1706321450473,-150.0,0.00042192,2]
[312834071,1706321450482,-294.89,0.00042192,2]
[312834072,1706321450491,-409.34,0.00042192,2]
[312834073,1706321450500,-150.0,0.00042192,2]
[312834074,1706321450509,-294.89,0.00042192,2]
[312834075,1706321450518,-150.0,0.00042192,2]
[312834076,1706321450527,-419.27,0.00042192,2]
[312834077,1706321450536,-409.34,0.00042192,2]
[312834078,1706321450545,-150.0,0.00042192,2]
[312834079,1706321450554,-294.89,0.00042192,2]
[312834080,1706321450563,-419.27,0.00042192,2]
[312834081,1706321450572,-150.0,0.00042192,2]
[312834082,1706321450581,-200.92,0.00042296,2]
[312834083,1706321450590,-205.17532744,0.00042348,15]
[312834084,1706321450599,-157.47252036,0.000426,120]
[312834085,1706321450609,-72061.06623585,0.000426,2]
[312834086,1706321450617,-3084.22737246,0.00042683,10]
[312834087,1706321450627,-296.26,0.000427,7]
[312834088,1706321450636,-350.0,0.00043,33]
[312834089,1706321450645,-289.63250539,0.00043,30]
[312834090,1706321450654,-1782.46189948,0.00043,7]
[312834091,1706321450663,-419.27,0.00043014,2]
[312834092,1706321450672,-409.34,0.00043014,2]
[312834093,1706321450681,-290.76,0.00043014,2]
[312834094,1706321450690,-409.34,0.00043014,2]
[312834095,1706321450699,-417.89,0.00043014,2]
[312834096,1706321450708,-409.34,0.00043014,2]
[312834097,1706321450718,-419.27,0.00043014,2]
[312834098,1706321450727,-838.31,0.00043014,2]
[312834099,1706321450740,-876.69,0.00043014,2]
[312834100,1706321450750,-419.27,0.00043014,2]
[312834101,1706321450759,-198.98,0.00043014,2]
[312834102,1706321450768,-10949.87467116,0.00043056,17]
[312834103,1706321450777,-1000.0,0.00043158,15]
[312834104,1706321450787,-1000.0,0.00043232,15]
[312834105,1706321450796,-226.36752904,0.000433,30]
[312834106,1706321450805,-1000.0,0.00043509,15]
[312834107,1706321450815,-1000.0,0.00043509,15]
[312834108,1706321450824,-186.80749845,0.00043598,90]
[312834109,1706321450834,-151.26087717,0.00043598,90]
[312834110,1706321450843,-1000.0,0.000438,2]
[312834111,1706321450852,-151.0,0.00043836,7]
[312834112,1706321450861,-151.0,0.00043836,7]
[312834113,1706321450871,-151.0,0.00043836,7]
[312834114,1706321450880,-151.0,0.00043836,7]
[312834115,1706321450889,-151.0,0.00043836,7]
[312834116,1706321450898,-151.0,0.00043836,7]
[312834117,1706321450909,-248.801468,0.00043836,7]
[312834118,1706321450918,-350.0,0.00044,34]
[312834119,1706321450927,-289.0401689,0.00044,30]
[312834120,1706321450936,-171.07191896,0.00044,30]
[312834121,1706321450946,-1234.41024116,0.00044,120]
[312834122,1706321450956,-316.09,0.00044085,15]
[312834123,1706321450965,-150.0,0.00044133,120]
[312834124,1706321450975,-200.92,0.0004456,2]
[312834125,1706321450984,-509.24752369,0.00044639,5]
[312834126,1706321450993,-151.67,0.00044749,2]
[312834127,1706321451002,-328.7951,0.000448,30]
[312834128,1706321451011,-5081.63790487,0.000449,30]
[312834129,1706321451020,-1891.17,0.00044932,2]
[312834130,1706321451029,-747.74904848,0.00044986,4]
[312834131,1706321451038,-252.81337463,0.00045,2]
[312834132,1706321451047,-300.0,0.00045,35]
[312834133,1706321451056,-418.44153832,0.00045,2]
[312834134,1706321451065,-632.07708063,0.00045,60]
[312834135,1706321451177,-164.51492309,0.00045,4]
[312834136,1706321451188,-598.0,0.00045,2]
[312834137,1706321451198,-72061.06623585,0.00045,2]
[312834138,1706321451208,-10949.87467116,0.00045671,21]
[312834139,1706321451218,-448.26729547,0.00045781,7]
[312834140,1706321451227,-475.81234047,0.0004588,100]
[312834141,1706321451237,-300.0,0.00046,38]
[312834142,1706321451247,-152.0,0.000462,4]
[312834143,1706321451256,-155.82480671,0.000462,5]
[312834144,1706321451265,-1000.0,0.000466,2]
[312834145,1706321451274,-243.56,0.000466,5]
[312834146,1706321451283,-243.56,0.000466,5]
[312834147,1706321451293,-243.56,0.000466,5]
[312834148,1706321451302,-243.56,0.000466,5]
[312834149,1706321451312,-243.56,0.000466,5]
[312834150,1706321451333,-243.56,0.000466,5]
[312834151,1706321451367,-243.56,0.000466,5]
[312834152,1706321451377,-243.56,0.000466,5]
[312834153,1706321451386,-243.56,0.000466,5]
[312834154,1706321451395,-243.56,0.000466,5]
[312834155,1706321451404,-243.56,0.000466,5]
[312834156,1706321451413,-243.56,0.000466,5]
[312834157,1706321451423,-243.56,0.000466,5]
[312834158,1706321451433,-243.56,0.000466,5]
[312834159,1706321451442,-243.56,0.000466,5]
[312834160,1706321451451,-243.56,0.000466,5]
[312834161,1706321451461,-243.56,0.000466,5]
[312834162,1706321451471,-243.56,0.000466,5]
[312834163,1706321451480,-243.56,0.000466,5]
[312834164,1706321451490,-243.56,0.000466,5]
[312834165,1706321451500,-3084.22737246,0.00046791,12]
[312834166,1706321451510,-200.92,0.00046824,2]
[312834167,1706321451520,-5788.71,0.00046849,120]
[312834168,1706321451530,-300.0,0.00047,39]
[312834169,1706321451539,-509.24752369,0.00047139,5]
[312834170,1706321451549,-548.0,0.0004739,2]
[312834171,1706321451559,-72061.06623585,0.000474,2]
[312834172,1706321451569,-1000.0,0.00047486,30]
[312834173,1706321451578,-1000.0,0.00047486,30]
[312834174,1706321451587,-1000.0,0.00047486,30]
[312834175,1706321451596,-1000.0,0.00047673,30]
[312834176,1706321451605,-1000.0,0.00047692,30]
[312834177,1706321451614,-1000.0,0.00047692,30]
[312834178,1706321451623,-155.0,0.00047701,15]
[312834179,1706321451633,-296.26,0.000478,7]
[312834180,1706321451642,-316.09,0.00047821,15]
[312834181,1706321451651,-300.0,0.00048,40]
[312834182,1706321451660,-946.6235914,0.00048,14]
[312834183,1706321451669,-347.46692657,0.00048,30]
[312834184,1706321451678,-218.0,0.00048,31]
[312834185,1706321451687,-150.0,0.00048219,2]
[312834186,1706321451697,-150.0,0.00048219,2]
[312834187,1706321451706,-150.0,0.00048219,2]
[312834188,1706321451715,-10949.87467116,0.00048285,24]
[312834189,1706321451725,-500.0,0.0004852,30]
[312834190,1706321451736,-5000.0,0.000486,40]
[312834191,1706321451745,-326.0,0.000486,2]
[312834192,1706321451754,-264.35245773,0.000486,30]
[312834193,1706321451763,-154.4,0.00048767,2]
[312834194,1706321451774,-150.0,0.00048767,2]
[312834195,1706321451783,-150.0,0.00048767,2]
[312834196,1706321451792,-250.0,0.00049,41]
[312834197,1706321451801,-500.0,0.00049068,30]
[312834198,1706321451811,-200.92,0.00049087,2]
[312834199,1706321451819,-1000.0,0.000493,2]
[312834200,1706321451829,-150.61,0.00049315,60]
[312834201,1706321451837,-200.0,0.00049315,60]
[312834202,1706321451846,-150.0,0.00049357,120]
[312834203,1706321451855,-4050.0,0.00049463,7]
[312834204,1706321451864,-534.99556512,0.00049616,90]
[312834205,1706321451873,-509.24752369,0.00049639,5]
[312834206,1706321451882,-546.0,0.0004969,2]
[312834207,1706321451891,-72061.06623585,0.000498,2]
[312834208,1706321451900,-167.6,0.00049878,15]
[312834209,1706321451910,-167.6,0.00049878,15]
[312834210,1706321451919,-167.6,0.00049878,15]
[312834211,1706321451928,-167.6,0.00049878,15]
[312834212,1706321451937,-167.6,0.00049878,15]
[312834213,1706321451946,-167.6,0.00049878,15]
[312834214,1706321451956,-167.6,0.00049878,15]
[312834215,1706321451965,-167.6,0.00049878,15]
[312834216,1706321451974,-1249.31192992,0.00049896,4]
[312834217,1706321451984,-745.97208021,0.00049897,4]
[312834218,1706321451993,-2604.99968715,0.00049898,4]
[312834219,1706321452002,-59999.58030009,0.000499,5]
[312834220,1706321452011,-151.97280474,0.00049996,2]
[312834221,1706321452020,-167.43304946,0.00049998,4]
[312834222,1706321452029,-26898.56888069,0.0005,4]
[312834223,1706321452038,-2956.2494956,0.0005,4]
[312834224,1706321452048,-274.64224589,0.0005,120]
[312834225,1706321452057,-7856.48523005,0.0005,4]
[312834226,1706321452066,-864.25542996,0.0005,2]
[312834227,1706321452075,-269.26220601,0.0005,4]
[312834228,1706321452084,-183.05072978,0.0005,4]
[312834229,1706321452094,-2000.0,0.0005,5]
[312834230,1706321452103,-20000.0,0.0005,30]
[312834231,1706321452112,-250.0,0.0005,42]
[312834232,1706321452121,-651.3281643,0.0005,30]
[312834233,1706321452130,-2000.0,0.0005,32]
[312834234,1706321452139,-1500.0,0.0005,30]
[312834235,1706321452149,-11764.04807433,0.0005,2]
[312834236,1706321452158,-7540.36104476,0.0005,30]
[312834237,1706321452167,-235.91328796,0.0005,20]
[312834238,1706321452176,-178.0690891,0.0005,30]
[312834239,1706321452185,-11994.0,0.0005,14]
[312834240,1706321452194,-277.01,0.0005,120]
[312834241,1706321452203,-523.98,0.0005,120]
[312834242,1706321452213,-510.2892054,0.0005,120]
[312834243,1706321452222,-5068.50522771,0.0005,20]
[312834244,1706321452230,-598.0,0.0005,30]
[312834245,1706321452239,-26362.17924484,0.0005,30]
[312834246,1706321452249,-326.0,0.0005009,4]
[312834247,1706321452258,-157.0127,0.00050498,29]
[312834248,1706321452267,-2901.43307647,0.000505,30]
[312834249,1706321452276,-20000.0,0.000505,5]
[312834250,1706321452285,-172.14582146,0.00050658,120]
[312834251,1706321452293,-162.07,0.0005088,120]
[312834252,1706321452302,-150.5,0.0005089,120]
[312834253,1706321452311,-30872.03499174,0.000509,7]
[312834254,1706321452319,-10949.87467116,0.000509,27]
[312834255,1706321452328,-173.48281041,0.000509,72]
[312834256,1706321452337,-3084.22737246,0.000509,14]
[312834257,1706321452346,-3266.46756942,0.00051,120]
[312834258,1706321452356,-969035.45243903,0.00051,55]
[312834259,1706321452365,-901837.76754337,0.00051,50]
[312834260,1706321452374,-993.5,0.00051,25]
[312834261,1706321452382,-61957.86977462,0.00051,120]
[312834262,1706321452391,-10000.0,0.00051,120]
[312834263,1706321452400,-77909.0,0.00051,25]
[312834264,1706321452409,-250.0,0.00051,43]
[312834265,1706321452418,-650.8,0.00051,16]
[312834266,1706321452426,-1500.0,0.00051,30]
[312834267,1706321452435,-347.1718884,0.00051,52]
[312834268,1706321452444,-1037.064,0.00051,30]
[312834269,1706321452453,-151.67,0.00051142,2]
[312834270,1706321452462,-204.0,0.0005121,30]
[312834271,1706321452471,-204.0,0.0005121,30]
[312834272,1706321452480,-372.78,0.00051233,30]
[312834273,1706321452489,-172.14582146,0.00051315,120]
[312834274,1706321452498,-200.92,0.00051351,2]
[312834275,1706321452507,-157.0127,0.00051498,59]
[312834276,1706321452516,-244.65,0.000515,60]
[312834277,1706321452526,-187.85,0.000515,45]
[312834278,1706321452535,-150.0,0.0005155,30]
[312834279,1706321452543,-316.09,0.00051557,120]
[312834280,1706321452552,-326.0,0.0005158,6]
[312834281,1706321452561,-175.27542554,0.00051635,60]
[312834282,1706321452570,-151.14505903,0.00051637,60]
[312834283,1706321452578,-159.67531266,0.00051644,60]
[312834284,1706321452588,-156.37182955,0.00051684,60]
[312834285,1706321452597,-917.50520742,0.00051686,60]
[312834286,1706321452606,-162.62697686,0.00051753,60]
[312834287,1706321452615,-2100.000099,0.00051763,7]
[312834288,1706321452624,-5000.0,0.000518,45]
[312834289,1706321452633,-150.00071124,0.000518,30]
[312834290,1706321452642,-953.82,0.0005183,26]
[312834291,1706321452651,-157.80634469,0.00051868,60]
[312834292,1706321452660,-150.0,0.00051891,120]
[312834293,1706321452669,-151.14505903,0.00051939,60]
[312834294,1706321452678,-172.14582146,0.00051973,120]
[312834295,1706321452686,-219.0,0.0005199,2]
[312834296,1706321452696,-186.0,0.0005199,2]
[312834297,1706321452705,-20000.0,0.00052,4]
[312834298,1706321452714,-2089.22994738,0.00052,2]
[312834299,1706321452723,-11748.98813665,0.00052,30]
[312834300,1706321452735,-836381.87245737,0.00052,10]
[312834301,1706321452744,-335.34,0.00052,120]
[312834302,1706321452754,-300.0,0.00052,53]
[312834303,1706321452762,-3000.0,0.00052,30]
[312834304,1706321452772,-30208.0293465,0.00052,15]
[312834305,1706321452782,-160.0,0.00052,120]
[312834306,1706321452791,-160.0,0.00052,120]
[312834307,1706321452800,-1000.0,0.00052,120]
[312834308,1706321452811,-165.68694593,0.00052,10]
[312834309,1706321452821,-486.04661929,0.00052,120]
[312834310,1706321452830,-1835.31,0.00052019,5]
[312834311,1706321452839,-475.4939246,0.00052054,2]
[312834312,1706321452848,-195.35946145,0.00052054,2]
[312834313,1706321452857,-1000.0,0.00052054,2]
[312834314,1706321452866,-439.70418115,0.00052054,31]
[312834315,1706321452875,-314.86489373,0.00052054,2]
[312834316,1706321452884,-500.0,0.00052054,31]
[312834317,1706321452893,-500.0,0.00052054,31]
[312834318,1706321452902,-500.0,0.00052054,31]
[312834319,1706321452911,-500.0,0.00052054,31]
[312834320,1706321452920,-500.0,0.00052054,31]
[312834321,1706321452929,-1000.0,0.00052054,7]
[312834322,1706321452939,-500.0,0.00052054,31]
[312834323,1706321452948,-322.02687461,0.00052054,31]
[312834324,1706321452957,-518.10293106,0.00052054,31]
[312834325,1706321452966,-500.0,0.00052054,31]
[312834326,1706321452975,-500.0,0.00052054,31]
[312834327,1706321452984,-500.0,0.00052054,31]
[312834328,1706321452995,-500.0,0.00052054,31]
[312834329,1706321453005,-500.0,0.00052054,31]